bitfinex-derivatives/quotes_SOLF0:USTF0_20251207
["timestamp","ask_amount","ask_price","bid_price","bid_amount"]
[1765089795328,9.91213643,133.22,133.17,3.24384995]
[1765089795525,5.69250357,133.21,133.17,3.24384995]
[1765089795726,9.91213643,133.22,133.17,3.24384995]
[1765089795926,5.69257339,133.21,133.17,3.24384995]
[1765089796126,5.69257339,133.2,133.17,3.24384995]
[1765089796320,9.91213643,133.22,133.17,3.24384995]
[1765089796521,5.69248462,133.21,133.17,3.24384995]
[1765089796724,5.69248462,133.2,133.17,3.24384995]
[1765089796925,9.91213643,133.22,133.17,3.24384995]
[1765089797221,5.69248462,133.21,133.17,3.24384995]
[1765089797428,12.44868462,133.2,133.17,0.05384995]
[1765089797629,6.7562,133.2,133.17,0.05384995]
[1765089797827,105.092,133.21,133.17,0.05384995]
[1765089798123,5.69292797,133.2,133.17,0.05384995]
[1765089798330,5.69292797,133.19,133.17,0.05384995]
[1765089798626,105.092,133.21,133.17,0.05384995]
[1765089798827,5.69283615,133.2,133.17,0.05384995]
[1765089799129,69.59283615,133.19,133.17,0.05384995]
[1765089799320,63.9,133.19,133.17,0.05384995]
[1765089799522,70.6569,133.19,133.17,0.05384995]
[1765089814741,70.6569,133.19,133.17,3.21384995]
[1765089816746,70.6569,133.19,133.17,0.05384995]
[1765089840763,168.9933,133.21,133.17,0.05384995]
[1765089840974,174.69038205,133.2,133.17,0.05384995]
[1765089841175,5.69258205,133.19,133.17,0.05384995]
[1765089841374,168.9978,133.2,133.17,0.05384995]
[1765089841673,5.69375786,133.19,133.17,0.05384995]
[1765089841873,168.9978,133.2,133.17,0.05384995]
[1765089842172,5.69375786,133.19,133.17,0.05384995]
[1765089842371,168.9978,133.2,133.17,0.05384995]
[1765089842573,12.45116853,133.19,133.17,0.05384995]
[1765089842773,6.7568,133.19,133.17,0.05384995]
[1765089844479,5.69467964,133.18,133.17,0.05384995]
[1765089861380,6.7578,133.17,133.13,3.29]
[1765089861579,63.92,133.16,133.12,3.29]
[1765089862296,0.04787387,133.15,133.13,3.34774089]
[1765089865696,0.04787387,133.15,133.13,0.05774089]
[1765089866794,6.80697387,133.15,133.13,0.05774089]
[1765089868703,8.82782689,133.15,133.13,0.05774089]
[1765089878103,6.80697387,133.15,133.13,0.05774089]
[1765089878304,8.82782689,133.15,133.13,0.05774089]
[1765089895321,107.20892689,133.15,133.09,3.07]
[1765089895610,2.02085302,133.12,133.09,3.07]
[1765089895913,63.92,133.11,133.09,3.07]
[1765089896302,63.96755883,133.11,133.09,3.12760755]
[1765089911830,63.96755883,133.11,133.09,0.05760755]
[1765089919346,63.96755883,133.11,133.09,3.09760755]
[1765089924957,0.04755883,133.11,133.1,3.04]
[1765089927549,0.04755883,133.11,133.09,0.05760755]
[1765089956678,6.80835883,133.11,133.09,0.05760755]
[1765089964793,0.04755883,133.11,133.09,3.14760755]
[1765089979396,5.69470312,133.14,133.09,3.14760755]
[1765089979591,66.00268181,133.15,133.09,3.14760755]
[1765089980303,0.0549247,133.13,133.09,3.14760755]
[1765089980501,0.0549247,133.13,133.11,3.24]
[1765090031850,2.02268181,133.12,133.09,3.35760755]
[1765090034353,0.0549247,133.13,133.09,3.35760755]
[1765090036253,70.7549247,133.13,133.09,3.35760755]
[1765090043654,6.7603,133.12,133.09,3.35760755]
[1765090045361,6.7609,133.11,133.09,0.05760755]
[1765090047258,6.7609,133.11,133.09,3.25760755]
[1765090047756,6.7609,133.11,133.09,0.05760755]
[1765090057258,63.96,133.1,133.09,0.05760755]
[1765090057460,70.7216,133.1,133.05,3.2]
[1765090057863,67.12058231,133.1,133.05,3.2]
[1765090058464,0.04747705,133.09,133.06,0.0575972]
[1765090058871,6.80947705,133.09,133.06,0.0575972]
[1765090062072,6.7624,133.08,133.06,0.0575972]
[1765090063466,63.96,133.07,133.06,0.0575972]
[1765090085276,63.96,133.07,133.06,3.3875972]
[1765090085480,63.96,133.07,133.06,0.0575972]
[1765090086384,63.96,133.07,133.06,3.3875972]
[1765090086687,63.96,133.07,133.06,0.0575972]
[1765090096409,65.9842598,133.07,133.06,0.0575972]
[1765090098602,63.96,133.07,133.06,0.0575972]
[1765090098799,65.9842598,133.07,133.06,0.0575972]
[1765090103811,63.96,133.07,133.06,0.0575972]
[1765090104110,65.9842598,133.07,133.06,0.0575972]
[1765090109920,63.96,133.07,133.06,0.0575972]
[1765090120427,69.64880655,133.07,133.06,0.0575972]
[1765090121227,63.96,133.07,133.06,0.0575972]
[1765090122331,69.6492235,133.07,133.06,0.0575972]
[1765090122825,174.8527235,133.07,132.97,3.07]
[1765090123019,2.0242598,133.02,132.97,3.07]
[1765090123721,0.05464676,133.01,132.99,3.07]
[1765090140837,0.05464676,133.01,132.99,9.8367]
[1765090141028,0.05464676,133.01,133.0,3.05]
[1765090202089,6.7663,133.0,132.98,0.05441367]
[1765090202391,70.7463,133.0,132.98,0.05441367]
[1765090204291,70.7463,133.0,132.99,3.15]
[1765090205794,63.98,133.0,132.99,3.15]
[1765090213592,1.38,132.99,132.98,0.05441367]
[1765090233313,7.08509474,132.99,132.98,0.05441367]
[1765090234916,69.70509474,132.99,132.98,3.26441367]
[1765090235117,64.0,132.99,132.98,3.26441367]
[1765090251534,2.02665321,133.0,132.98,3.26441367]
[1765090254941,3.40665321,133.0,132.98,3.26441367]
[1765090263362,64.05464676,133.01,132.98,3.26441367]
[1765090263559,1.37,133.05,132.99,3.32]
[1765090263862,2.02665321,133.06,133.0,3.32]
[1765090264564,0.05095578,133.04,133.03,3.32]
[1765090265856,2.02665321,133.06,133.03,3.32]
[1765090265857,1.37,133.05,133.03,3.32]
[1765090266051,3.39665321,133.04,133.02,3.37638558]
[1765090266763,3.44599733,133.04,133.02,3.37638558]
[1765090268762,1.41934412,133.04,133.02,3.37638558]
[1765090269066,1.37,133.03,133.02,0.05638558]
[1765090269265,1.37,133.03,133.02,3.37638558]
[1765090273270,1.41934412,133.04,133.02,3.37638558]
[1765090273668,1.37,133.09,133.02,3.37638558]
[1765090273970,121.71988442,133.11,133.02,3.37638558]
[1765090273971,121.78818079,133.11,133.05,3.32]
[1765090274358,116.10560426,133.11,133.05,3.32]
[1765090274757,0.03462705,133.09,133.08,3.32]
[1765090276263,1.45462705,133.09,133.07,3.3720426]
[1765090276467,1.45462705,133.09,133.07,0.0520426]
[1765090278566,8.21662705,133.09,133.07,0.0520426]
[1765090278767,1.43,133.08,133.07,0.0520426]
[1765090301086,65.45,133.08,133.07,0.0520426]
[1765090303192,64.0,133.08,133.07,3.2320426]
[1765090304784,65.43,133.08,133.07,0.0520426]
[1765090313510,1.43,133.08,133.07,0.0520426]
[1765090317419,7.15338314,133.08,133.07,0.0520426]
[1765090349932,7.15338314,133.08,133.07,3.3320426]
[1765090350134,72.22652705,133.09,133.07,3.3320426]
[1765090354432,1.43,133.08,133.07,3.3320426]
[1765090355529,70.79652705,133.09,133.07,3.3320426]
[1765090355729,72.22652705,133.09,133.07,3.3320426]
[1765090355930,1.43,133.08,133.07,3.3320426]
[1765090359644,1.43,133.08,133.07,0.0520426]
[1765090364848,7.13589657,133.08,133.07,0.0520426]
[1765090372444,1.43,133.08,133.07,0.0520426]
[1765090374252,7.13657552,133.08,133.07,0.0520426]
[1765090374653,1.43,133.08,133.07,0.0520426]
[1765090377462,7.13694186,133.08,133.07,0.0520426]
[1765090385172,1.43,133.08,133.07,3.4020426]
[1765090385374,1.43,133.08,133.07,0.0520426]
[1765090386276,7.13788105,133.08,133.07,0.0520426]
[1765090397677,1.43,133.08,133.07,0.0520426]
[1765090397879,7.13465045,133.08,133.07,0.0520426]
[1765090401174,1.43,133.08,133.07,0.0520426]
[1765090401374,7.13605184,133.08,133.07,0.0520426]
[1765090464327,9.16027508,133.08,133.07,0.0520426]
[1765090466820,1.37,133.06,133.02,3.08]
[1765090467025,1.37,133.04,133.02,3.08]
[1765090467224,63.96,133.03,133.02,3.08]
[1765090484341,65.33,133.03,133.02,3.08]
[1765090497358,63.96,133.03,133.02,3.08]
[1765090497758,0.0539641,133.04,133.02,3.08]
[1765090525388,0.0539641,133.04,133.03,3.2]
[1765090526588,1.37,133.09,133.04,3.2]
[1765090526889,1.37,133.1,133.04,3.2]
[1765090527190,7.08996481,133.09,133.04,3.2]
[1765090527398,1.37,133.09,133.04,3.2]
[1765090527589,1.37,133.09,133.05,3.25750199]
[1765090527590,0.03270555,133.08,133.05,3.25750199]
[1765090528481,0.03270555,133.08,133.06,3.2]
[1765090530398,63.98,133.12,133.07,3.2]
[1765090530694,1.37,133.13,133.07,3.2]
[1765090531496,1.37,133.13,133.1,3.2]
[1765090535296,8.1589,133.15,133.1,3.2]
[1765090536097,1.4,133.14,133.1,3.2]
[1765090550007,8.1689,133.15,133.1,3.2]
[1765090550610,1.41,133.14,133.1,3.2]
[1765090573430,1.41,133.14,133.09,3.16038492]
[1765090573431,1.4,133.12,133.09,3.16038492]
[1765090575330,1.4,133.11,133.09,0.05038492]
[1765090579137,1.4,133.11,133.09,3.17038492]
[1765090580637,63.94,133.12,133.09,3.17038492]
[1765090580840,1.41,133.12,133.09,3.17038492]
[1765090584433,63.96,133.13,133.09,3.17038492]
[1765090585136,65.37,133.13,133.09,3.17038492]
[1765090585539,65.37,133.13,133.1,3.12]
[1765090592948,63.96,133.13,133.11,3.12]
[1765090593246,1.41,133.14,133.11,3.12]
[1765090593441,1.41,133.14,133.11,3.1768516]
[1765090619174,8.1692,133.14,133.11,3.1768516]
[1765090628179,1.4,133.12,133.11,0.0568516]
[1765090628882,8.1605,133.12,133.08,3.15]
[1765090629078,1.4,133.11,133.08,3.15]
[1765090629981,1.45157422,133.11,133.08,3.19810297]
[1765090630590,1.45157422,133.11,133.08,0.04810297]
[1765090630776,3.47367664,133.11,133.08,0.04810297]
[1765090631081,1.4,133.1,133.08,3.19810297]
[1765090656000,0.05157422,133.11,133.08,3.19810297]
[1765090657502,0.05157422,133.11,133.09,3.12]
[1765090660804,0.05157422,133.11,133.09,9.8816]
[1765090661002,0.05157422,133.11,133.1,3.12]
[1765090668107,121.22703293,133.16,133.11,3.27]
[1765090668305,1.4,133.14,133.11,3.27]
[1765090668702,121.22703293,133.16,133.11,3.27]
[1765090668902,5.66542672,133.15,133.11,3.27]
[1765090669103,121.22703293,133.16,133.11,3.27]
[1765090669409,121.22703293,133.16,133.1,6.7611]
[1765090669410,5.66511859,133.15,133.13,3.27]
[1765090669614,121.22703293,133.16,133.13,3.27]
[1765090669910,5.66511928,133.15,133.13,3.27]
[1765090670111,121.22703293,133.16,133.13,3.27]
[1765090670305,5.66511943,133.15,133.13,3.27]
[1765090670506,121.22703293,133.16,133.13,3.27]
[1765090670714,5.66511943,133.15,133.13,3.27]
[1765090671013,1.4,133.15,133.13,3.27]
[1765090674716,1.4,133.15,133.12,3.32424893]
[1765090680322,113.06853293,133.16,133.12,3.32424893]
[1765090681315,114.46853293,133.16,133.12,3.32424893]
[1765090681521,114.46853293,133.16,133.13,3.22]
[1765090685323,113.06853293,133.16,133.13,3.22]
[1765090686024,114.46853293,133.16,133.13,3.22]
[1765090686628,113.06853293,133.16,133.13,3.22]
[1765090690230,63.92,133.17,133.13,3.22]
[1765090690529,65.32,133.17,133.14,3.22]
[1765090691126,1.4,133.16,133.12,3.27424893]
[1765090691925,1.4,133.15,133.12,0.05424893]
[1765090692719,1.4,133.13,133.12,0.05424893]
[1765090716842,3.42210812,133.13,133.12,0.05424893]
[1765090725957,9.09576269,133.13,133.12,0.05424893]
[1765090731761,7.07365457,133.13,133.12,0.05424893]
[1765090737568,71.01365457,133.13,133.12,0.05424893]
[1765090738468,1.41,133.12,133.08,10.122]
[1765090739464,0.04748895,133.11,133.09,0.05538644]
[1765090739770,1.4,133.1,133.09,0.05538644]
[1765090751584,1.4,133.1,133.09,3.41538644]
[1765090761493,0.04748895,133.11,133.09,3.41538644]
[1765090763297,1.45748895,133.11,133.09,3.41538644]
[1765090789157,1.45748895,133.11,133.09,3.28538644]
[1765090793537,1.45748895,133.11,133.09,0.05538644]
[1765090793743,1.41,133.09,133.03,3.06]
[1765090793944,1.41,133.07,133.03,3.06]
[1765090794643,0.0481437,133.06,133.05,3.06]
[1765090798244,1.4581437,133.06,133.04,3.11228261]
[1765090800237,1.4581437,133.06,133.04,0.05228261]
[1765090800846,0.0481437,133.06,133.04,3.11228261]
[1765090801941,1.4581437,133.06,133.04,3.11228261]
[1765090802437,8.2217437,133.06,133.04,0.05228261]
[1765090802632,1.41,133.05,133.04,0.05228261]
[1765090803542,0.0481437,133.06,133.04,3.11228261]
[1765090803746,64.0281437,133.06,133.04,3.11228261]
[1765090805848,65.4381437,133.06,133.04,3.11228261]
[1765090806149,64.0281437,133.06,133.04,3.11228261]
[1765090806652,65.4381437,133.06,133.04,3.11228261]
[1765090807739,64.0281437,133.06,133.04,3.11228261]
[1765090809046,65.4381437,133.06,133.04,3.11228261]
[1765090812748,1.41,133.05,133.04,0.05228261]
[1765090814053,1.41,133.05,133.01,3.06]
[1765090814946,1.41,133.05,133.03,3.06]
[1765090822960,0.0481437,133.06,133.03,3.06]
[1765090823156,1.4581437,133.06,133.03,3.06]
[1765090826264,0.0481437,133.06,133.03,3.06]
[1765090831666,0.0481437,133.06,133.03,9.8246]
[1765090831863,0.0481437,133.06,133.04,3.34]
[1765090832569,0.0481437,133.06,133.04,10.1041]
[1765090832870,4.57055571,133.1,133.05,3.34]
[1765090833771,0.05254319,133.09,133.07,3.34]
[1765090835867,1.46254319,133.09,133.07,3.34]
[1765090843272,1.46254319,133.09,133.06,3.39747087]
[1765090843464,1.41,133.07,133.06,0.05747087]
[1765090845172,2.02361654,133.08,133.06,3.39747087]
[1765090845668,0.05254319,133.09,133.06,3.39747087]
[1765090845669,1.46254319,133.09,133.06,3.39747087]
[1765090851177,0.05254319,133.09,133.06,3.39747087]
[1765090852080,1.46254319,133.09,133.06,3.39747087]
[1765090852572,1.46254319,133.09,133.07,3.19]
[1765090853479,1.46254319,133.09,133.06,3.24747087]
[1765090853866,1.46254319,133.09,133.06,0.05747087]
[1765090855280,1.41,133.08,133.06,0.05747087]
[1765090855979,1.41,133.08,133.06,3.24747087]
[1765090856871,65.46254319,133.09,133.06,3.24747087]
[1765090858084,64.05254319,133.09,133.06,3.24747087]
[1765090859783,0.05254319,133.09,133.06,3.24747087]
[1765090862588,0.05254319,133.09,133.06,10.01057087]
[1765090862988,0.05254319,133.09,133.07,3.33]
[1765090863786,0.05254319,133.09,133.07,10.0926]
[1765090864087,0.05254319,133.09,133.08,3.33]
[1765090874198,1.46254319,133.09,133.08,3.33]
[1765090875082,1.46254319,133.09,133.07,3.33]
[1765090875786,0.05254319,133.09,133.07,3.33]
[1765090876298,1.46254319,133.09,133.07,3.33]
[1765090886695,2.02361654,133.08,133.06,0.05747087]
[1765090887002,1.41,133.07,133.06,0.05747087]
[1765090894306,1.41,133.06,133.02,3.26]
[1765090895208,1.41,133.04,132.98,3.26]
[1765090895397,0.04838563,133.02,133.01,3.26]
[1765090916921,1.45838563,133.02,133.01,3.26]
[1765090917126,1.45838563,133.02,133.0,3.30991191]
[1765090919733,8.22388563,133.02,132.94,8.07710191]
[1765090919920,1.41,133.01,132.97,3.32]
[1765090920128,64.04,133.0,132.97,3.32]
[1765090920425,65.45,133.0,132.97,3.32]
[1765090920922,65.5027344,133.0,132.97,3.37780212]
[1765090924630,1.41,132.99,132.97,3.37780212]
[1765090930231,1.41,132.99,132.94,3.32]
[1765090931435,1.41,132.99,132.96,3.32]
[1765090931639,1.45956347,132.99,132.96,3.32]
[1765090934638,1.41,132.98,132.95,3.37705178]
[1765090937738,8.1777,132.98,132.95,0.05705178]
[1765090937938,1.4,132.97,132.95,0.05705178]
[1765090938139,65.44,132.96,132.95,0.05705178]
[1765090941044,1.4,132.95,132.91,3.25]
[1765090942038,1.44868802,132.94,132.92,3.3079135]
[1765090945436,1.44868802,132.94,132.92,0.0579135]
[1765090945746,1.44868802,132.94,132.92,3.3079135]
[1765090946247,1.4,132.93,132.92,0.0579135]
[1765090946448,1.4,132.93,132.9,3.25]
[1765090946650,1.4,132.91,132.9,3.25]
[1765090948040,1.4,132.91,132.89,3.29798134]
[1765090948237,1.45270478,132.91,132.89,3.29798134]
[1765090950348,0.05270478,132.91,132.89,3.29798134]
[1765090950650,0.00270478,132.91,132.89,3.29798134]
[1765090957660,0.00270478,132.91,132.9,5.27798088]
[1765090957958,70.8681,132.97,132.91,3.25]
[1765090958457,1.45,132.96,132.92,3.25]
[1765090958759,0.05588602,132.95,132.94,3.25]
[1765090960052,1.50588602,132.95,132.94,3.25]
[1765090961558,1.50588602,132.95,132.93,3.3000372]
[1765090965564,1.50588602,132.95,132.93,0.0500372]
[1765090966467,1.50588602,132.95,132.93,3.3000372]
[1765090967770,0.05588602,132.95,132.93,3.3000372]
[1765090980378,0.05588602,132.95,132.93,10.0697372]
[1765090980579,0.05588602,132.95,132.94,3.32]
[1765090991591,2.02798088,132.99,132.94,3.32]
[1765090991786,3.54798088,132.99,132.94,3.32]
[1765090991992,1.52,132.98,132.94,3.32]
[1765090992595,0.05245239,132.97,132.94,3.32]
[1765090998098,1.57245239,132.97,132.94,3.32]
[1765091002101,1.52,132.96,132.94,3.32]
[1765091002604,3.54798088,132.95,132.93,0.0500372]
[1765091006294,67.66798088,132.95,132.93,3.3700372]
[1765091006494,1.57245239,132.97,132.93,3.3700372]
[1765091006806,71.33266328,132.96,132.93,3.3700372]
[1765091007003,65.64,132.96,132.93,3.3700372]
[1765091007413,1.52,132.95,132.93,3.3700372]
[1765091014812,64.12,132.96,132.93,3.3700372]
[1765091017013,65.64,132.96,132.93,3.3700372]
[1765091024924,1.52,132.96,132.93,3.3700372]
[1765091025814,1.52,132.96,132.94,3.32]
[1765091026018,0.05245239,132.97,132.94,3.32]
[1765091026319,64.15245239,132.97,132.94,3.32]
[1765091027120,64.15245239,132.97,132.95,3.32]
[1765091027121,0.05245239,132.97,132.95,3.32]
[1765091028611,0.05245239,132.97,132.96,3.19]
[1765091042833,1.57245239,132.97,132.96,3.19]
[1765091043027,1.57245239,132.97,132.94,3.17]
[1765091045335,0.05245239,132.97,132.94,3.17]
[1765091050236,0.05245239,132.97,132.95,3.17]
[1765091052138,1.57245239,132.97,132.94,6.7692]
[1765091052329,1.57245239,132.97,132.94,9.9392]
[1765091052530,1.57245239,132.97,132.93,0.0500372]
[1765091052531,0.05245239,132.97,132.95,9.9384]
[1765091052739,0.05245239,132.97,132.96,3.17]
[1765091055165,0.05245239,132.97,132.93,105.3555372]
[1765091055166,1.52,132.96,132.94,3.17]
[1765091056326,1.52,132.96,132.93,3.2200372]
[1765091056832,1.52,132.96,132.93,0.0500372]
[1765091058342,1.52,132.96,132.93,3.3900372]
[1765091065249,1.52,132.96,132.93,0.0500372]
[1765091065748,1.52,132.94,132.93,0.0500372]
[1765091067444,1.52,132.94,132.86,220.66166681]
[1765091067445,1.52,132.93,132.89,3.34]
[1765091068445,5.69111885,132.94,132.9,0.05631742]
[1765091068446,1.57086417,132.92,132.9,0.05631742]
[1765091070248,1.57086417,132.92,132.9,3.39631742]
[1765091070950,64.14,132.91,132.9,3.39631742]
[1765091072342,65.66,132.91,132.9,3.39631742]
[1765091074146,1.52,132.9,132.87,3.34]
[1765091075255,1.57331526,132.9,132.87,3.38817097]
[1765091078753,0.05331526,132.9,132.87,3.38817097]
[1765091078957,64.19331526,132.9,132.87,3.38817097]
[1765091082466,65.71331526,132.9,132.87,3.38817097]
[1765091090372,64.19331526,132.9,132.87,3.38817097]
[1765091092983,0.05331526,132.9,132.87,3.38817097]
[1765091094479,0.05331526,132.9,132.89,3.24]
[1765091095081,1.52,132.94,132.91,3.24]
[1765091095275,3.54956685,132.95,132.91,3.24]
[1765091096174,0.04858383,132.94,132.92,3.29369431]
[1765091097079,0.04858383,132.94,132.92,10.06379431]
[1765091097500,0.04858383,132.94,132.93,3.24]
[1765091102490,1.52,132.98,132.95,3.24]
[1765091103493,1.56744056,132.98,132.95,3.29215563]
[1765091106294,1.52,132.96,132.95,0.05215563]
[1765091106990,1.52,132.96,132.95,3.29215563]
[1765091107799,2.02956685,132.97,132.95,3.29215563]
[1765091107800,3.54956685,132.97,132.95,3.29215563]
[1765091108190,1.52,132.96,132.95,3.29215563]
[1765091109097,3.54956685,132.97,132.95,3.29215563]
[1765091112999,1.52,132.96,132.95,3.29215563]
[1765091117098,3.54956685,132.97,132.95,3.29215563]
[1765091117299,0.04744056,132.98,132.95,3.29215563]
[1765091138215,1.55744056,132.98,132.95,3.29215563]
[1765091145323,11.49192991,132.98,132.95,0.05215563]
[1765091145626,1.51,132.96,132.95,0.05215563]
[1765091145810,7.25535797,132.96,132.95,0.05215563]
[1765091146220,71.33535797,132.96,132.95,0.05215563]
[1765091157436,1.51,132.95,132.91,3.04]
[1765091158429,1.56775773,132.94,132.92,3.0968323]
[1765091175739,8.33735773,132.94,132.92,3.0968323]
[1765091176146,1.51,132.93,132.92,3.0968323]
[1765091181153,8.33735773,132.94,132.92,3.0968323]
[1765091184363,1.51,132.93,132.92,3.0968323]
[1765091184655,1.51,132.93,132.92,0.0568323]
[1765091189456,7.24693721,132.93,132.92,0.0568323]
[1765091202169,1.51,132.91,132.88,3.07]
[1765091202370,65.61,132.91,132.88,3.07]
[1765091203357,65.65933644,132.91,132.88,3.1177259]
[1765091213476,1.51,132.9,132.88,3.1177259]
[1765091219385,0.04933644,132.91,132.88,3.1177259]
[1765091220689,1.52,132.9,132.88,3.1177259]
[1765091221789,0.04933644,132.91,132.88,3.1177259]
[1765091221989,1.56933644,132.91,132.88,3.1177259]
[1765091223093,1.56933644,132.91,132.88,0.0477259]
[1765091223293,1.56933644,132.91,132.88,3.3577259]
[1765091224298,1.56933644,132.91,132.88,0.0477259]
[1765091224599,1.52,132.9,132.88,3.3577259]
[1765091224800,1.52,132.9,132.88,0.0477259]
[1765091226401,1.52,132.9,132.88,3.3577259]
[1765091227894,0.04933644,132.91,132.88,3.3577259]
[1765091232596,1.56933644,132.91,132.88,3.3577259]
[1765091235506,1.52,132.9,132.88,0.0477259]
[1765091236908,1.52,132.89,132.88,0.0477259]
[1765091237110,65.62,132.89,132.88,0.0477259]
[1765091244107,72.3923,132.89,132.86,3.31]
[1765091244311,1.52,132.88,132.86,3.31]
[1765091244518,1.52,132.88,132.84,3.27]
[1765091245218,1.56777734,132.87,132.85,3.32553857]
[1765091245429,1.56777734,132.87,132.85,0.05553857]
[1765091248218,1.56777734,132.87,132.85,3.32553857]
[1765091252224,1.56777734,132.87,132.85,0.05553857]
[1765091252722,1.52,132.86,132.85,0.05553857]
[1765091255531,1.52,132.85,132.76,3.27]
[1765091255833,3.54877644,132.82,132.77,3.27]
[1765091256535,0.0483633,132.81,132.79,3.27]
[1765091258224,1.5683633,132.81,132.78,3.32227167]
[1765091274445,8.3445633,132.81,132.78,3.32227167]
[1765091274638,1.52,132.8,132.78,3.32227167]
[1765091275940,65.68,132.8,132.78,3.32227167]
[1765091278443,72.4567,132.8,132.78,3.32227167]
[1765091280347,1.52,132.78,132.76,3.21]
[1765091280549,1.52,132.78,132.74,3.21]
[1765091281144,0.04998022,132.77,132.76,3.21]
[1765091281541,6.82828022,132.77,132.76,3.21]
[1765091284255,0.04998022,132.77,132.76,3.21]
[1765091288046,0.04998022,132.77,132.75,3.21]
[1765091288245,64.22998022,132.77,132.75,3.21]
[1765091289156,65.74998022,132.77,132.75,3.25999033]
[1765091289352,64.22998022,132.77,132.75,3.25999033]
[1765091290558,0.04998022,132.77,132.75,3.25999033]
[1765091312778,0.04998022,132.77,132.75,10.03889033]
[1765091312974,0.04998022,132.77,132.76,3.2]
[1765091313377,1.52,132.82,132.78,3.2]
[1765091314076,1.52,132.82,132.79,3.2]
[1765091314374,1.5720352,132.82,132.79,3.2516255]
[1765091319679,0.0520352,132.82,132.79,10.0285255]
[1765091319874,0.0520352,132.82,132.8,3.2]
[1765091321579,0.0520352,132.82,132.8,9.9763]
[1765091321982,0.0520352,132.82,132.81,3.2]
[1765091340489,1.5720352,132.82,132.8,3.1]
[1765091341991,0.0520352,132.82,132.8,3.1]
[1765091347301,1.5720352,132.82,132.8,3.1]
[1765091351290,0.0520352,132.82,132.8,3.1]
[1765091354404,1.5720352,132.82,132.8,3.1]
[1765091355201,0.0520352,132.82,132.8,3.1]
[1765091359607,1.5720352,132.82,132.8,3.1]
[1765091367111,0.0520352,132.82,132.8,3.1]
[1765091401937,1.5720352,132.82,132.79,0.0516255]
[1765091402142,7.23736312,132.81,132.79,0.0516255]
[1765091402436,1.52,132.81,132.79,3.2516255]
[1765091406046,1.52,132.79,132.73,3.2]
[1765091407136,0.04814493,132.77,132.76,3.2]
[1765091408343,1.56814493,132.77,132.76,3.2]
[1765091408748,0.04814493,132.77,132.76,3.2]
[1765091409741,0.04814493,132.77,132.75,0.04773943]
[1765091409742,8.34644493,132.77,132.75,3.24773943]
[1765091409934,64.16,132.76,132.75,3.24773943]
[1765091411346,65.68,132.76,132.75,3.24773943]
[1765091411545,65.68,132.76,132.75,0.04773943]
[1765091415550,1.52,132.75,132.73,3.2]
[1765091416752,1.52,132.75,132.73,3.2488916]
[1765091417449,8.2993,132.75,132.73,3.2488916]
[1765091424259,1.52,132.74,132.73,0.0488916]
[1765091425857,8.2998,132.74,132.71,3.17]
[1765091426049,65.7,132.73,132.71,3.17]
[1765091426255,1.52,132.72,132.71,3.17]
[1765091426754,1.52,132.72,132.66,3.17]
[1765091426955,0.05284286,132.7,132.69,3.17]
[1765091429462,105.5141,132.68,132.61,3.17]
[1765091429654,171.2233,132.67,132.61,3.17]
[1765091429857,174.39800852,132.67,132.61,3.17]
[1765091430157,1.52,132.66,132.61,3.17]
[1765091430560,172.87800852,132.67,132.57,3.17]
[1765091430561,105.5462,132.64,132.57,3.17]
[1765091430766,0.04946142,132.62,132.57,3.17]
[1765091431364,0.04946142,132.62,132.57,6.34470852]
[1765091431568,0.04946142,132.62,132.58,3.17]
[1765091436169,1.56946142,132.62,132.58,3.17]
[1765091438566,0.04946142,132.62,132.58,3.17]
[1765091438772,64.36946142,132.62,132.58,3.17]
[1765091442477,65.88946142,132.62,132.58,3.17]
[1765091444382,67.92754268,132.62,132.58,3.17]
[1765091445385,3.60754268,132.62,132.58,3.17]
[1765091450397,1.56946142,132.62,132.58,3.17]
[1765091453098,3.60754268,132.62,132.58,3.17]